bitfinex-derivatives/quotes_BNBF0:USTF0_20241230
["timestamp","ask_amount","ask_price","bid_price","bid_amount"]
[1735547612454,0.28728202,696.18,695.73,0.56507952]
[1735547612659,0.28728202,696.18,695.74,0.56507952]
[1735547612860,0.28728202,696.18,695.75,0.56507952]
[1735547613061,0.28728202,696.18,695.76,0.56507952]
[1735547613261,0.28728202,696.18,695.77,0.56507952]
[1735547613461,0.28728202,696.18,695.07,1.07441524]
[1735547613462,0.28728202,696.18,695.78,0.56507952]
[1735547613660,0.28728202,696.18,695.07,1.07441524]
[1735547613860,0.28728202,696.18,695.08,0.56518848]
[1735547614054,0.28728202,696.18,695.09,0.56518848]
[1735547614363,0.28728202,696.18,695.1,0.56518848]
[1735547614562,0.28728202,696.18,695.11,0.56518848]
[1735547614761,0.28728202,696.18,695.12,0.56518242]
[1735547614964,0.28728202,696.18,694.85,1.86681589]
[1735547614965,0.28728202,696.18,695.13,0.56518242]
[1735547615256,0.28728202,696.18,695.14,0.56518242]
[1735547615461,0.28728202,696.18,695.15,0.56518242]
[1735547615657,0.28728202,696.18,695.16,0.56518242]
[1735547615861,0.28728202,696.18,695.17,0.56518242]
[1735547616062,0.28728202,696.18,695.18,0.56518242]
[1735547616261,0.28728202,696.18,695.19,0.56518242]
[1735547616457,0.28728202,696.18,695.2,0.56518242]
[1735547616661,0.28728202,696.18,695.21,0.56518242]
[1735547616863,0.28728202,696.18,695.22,0.56518242]
[1735547617062,0.28728202,696.18,695.23,0.56518242]
[1735547617364,0.28728202,696.18,695.24,0.56518242]
[1735547617662,0.28728202,696.18,695.25,0.56518242]
[1735547617866,0.28728202,696.18,695.26,0.56524371]
[1735547618163,0.28728202,696.18,695.27,0.56524371]
[1735547618362,0.28728202,696.18,694.65,1.28929829]
[1735547618363,0.28728202,696.18,695.28,0.56524371]
[1735547618563,0.28728202,696.18,695.29,0.56524371]
[1735547618766,0.28728202,696.18,695.3,0.56524371]
[1735547618958,0.28728202,696.18,695.31,0.56524371]
[1735547619159,0.28728202,696.18,695.32,0.56524371]
[1735547619360,0.28728202,696.18,695.33,0.56524371]
[1735547619561,0.28728202,696.18,695.34,0.56524371]
[1735547619761,0.28728202,696.18,695.35,0.56524371]
[1735547620057,0.28728202,696.18,695.07,1.07441524]
[1735547620058,0.28728202,696.18,695.36,0.56524371]
[1735547620264,0.28728202,696.18,695.37,0.56524371]
[1735547620463,0.28728202,696.18,695.38,0.56524371]
[1735547620666,0.28728202,696.18,694.56,1.28929829]
[1735547620667,0.28728202,696.18,695.39,0.56524371]
[1735547620861,0.28728202,696.18,695.04,1.07441524]
[1735547621059,0.28728202,696.18,695.05,0.5653079]
[1735547621364,0.28728202,696.18,695.06,0.5653079]
[1735547621564,0.28728202,696.18,695.07,0.5653079]
[1735547621764,0.28728202,696.18,695.08,0.5653079]
[1735547621965,0.28728202,696.18,695.09,0.5653079]
[1735547622162,0.28728202,696.18,695.07,1.07441524]
[1735547622163,0.28728202,696.18,695.1,0.5653079]
[1735547622365,0.28728202,696.18,695.11,0.5653079]
[1735547622664,0.28728202,696.18,695.12,0.5653079]
[1735547622859,0.28728202,696.18,695.13,0.5653079]
[1735547623064,0.28728202,696.18,694.56,1.28929829]
[1735547623065,0.28728202,696.18,695.14,0.5653079]
[1735547623265,0.28728202,696.18,695.15,0.5653079]
[1735547623465,0.28728202,696.18,695.16,0.5653079]
[1735547623659,0.28728202,696.18,695.17,0.5653079]
[1735547623863,0.28728202,696.18,695.18,0.5653079]
[1735547624065,0.28728202,696.18,695.19,0.5653079]
[1735547624263,0.28728202,696.18,695.2,0.5653079]
[1735547624467,0.28728202,696.18,695.21,0.5653079]
[1735547624660,0.28728202,696.18,695.22,0.5653079]
[1735547624862,0.28728202,696.18,695.23,0.5653079]
[1735547625063,0.28728202,696.18,695.24,0.5653079]
[1735547625264,0.26453816,696.17,695.25,0.5653079]
[1735547625459,0.2872944,696.15,695.26,0.5653079]
[1735547625662,0.2872944,696.15,695.27,0.5653079]
[1735547625867,0.2872944,696.15,695.28,0.5653079]
[1735547626067,0.2872944,696.15,695.29,0.5653079]
[1735547626270,0.2872944,696.15,695.3,0.5653079]
[1735547626461,0.2872944,696.15,695.31,0.5653079]
[1735547626667,0.2872944,696.15,695.32,0.5653079]
[1735547626967,0.2872944,696.15,695.33,0.56552635]
[1735547627169,0.2872944,696.15,695.34,0.56552635]
[1735547627370,0.2872944,696.15,695.35,0.56552635]
[1735547627563,0.2872944,696.15,695.36,0.56555379]
[1735547627765,0.2872944,696.15,695.37,0.56555379]
[1735547627971,0.2872944,696.15,695.38,0.56555379]
[1735547628169,0.2872944,696.15,695.39,0.56555379]
[1735547628366,0.2872944,696.15,695.4,0.56555379]
[1735547628572,0.2872944,696.15,695.41,0.56555379]
[1735547628773,0.2872944,696.15,695.42,0.56555379]
[1735547628973,0.2872944,696.15,695.43,0.56555379]
[1735547629171,0.2872944,696.15,695.44,0.56554033]
[1735547629472,0.2872944,696.15,695.45,0.56554033]
[1735547629672,0.2872944,696.15,695.46,0.56554033]
[1735547629874,0.2872944,696.15,695.47,0.56554033]
[1735547630075,0.2872944,696.15,695.48,0.56554268]
[1735547630276,0.2872944,696.15,695.49,0.56554268]
[1735547630469,0.2872944,696.15,695.5,0.56554268]
[1735547630671,0.2872944,696.15,695.51,0.56554268]
[1735547630877,0.2872944,696.15,695.52,0.56554268]
[1735547631175,0.2872944,696.15,695.53,0.56554268]
[1735547631376,0.2872944,696.15,695.54,0.56554268]
[1735547631578,0.2872944,696.15,695.55,0.56554268]
[1735547631876,0.2872944,696.15,695.56,0.56554268]
[1735547632070,0.2872944,696.15,695.57,0.56554268]
[1735547632269,0.2872944,696.15,695.58,0.56554268]
[1735547632473,0.2872944,696.15,695.59,0.56554268]
[1735547632674,0.2872944,696.15,695.6,0.56554268]
[1735547632879,0.2872944,696.15,695.61,0.56554268]
[1735547633077,0.2872944,696.15,694.96,1.07441524]
[1735547633078,0.2872944,696.15,695.62,0.56554268]
[1735547633279,0.2872944,696.15,694.96,1.07441524]
[1735547633280,0.2872944,696.15,695.63,0.56547569]
[1735547633480,0.2872944,696.15,695.64,0.56547569]
[1735547633676,0.2872944,696.15,695.65,0.56547569]
[1735547633871,0.2872944,696.15,695.66,0.56547569]
[1735547634075,0.2872944,696.15,695.67,0.56547569]
[1735547634277,0.2872944,696.15,695.68,0.56547569]
[1735547634475,0.2872944,696.15,694.42,1.28929829]
[1735547634476,0.2872944,696.15,695.69,0.56547569]
[1735547634679,0.2872944,696.15,694.92,1.07441524]
[1735547634873,0.2872944,696.15,694.93,0.56548855]
[1735547635077,0.2872944,696.15,694.94,0.56548855]
[1735547635379,0.2872944,696.15,694.95,0.56548855]
[1735547635679,0.2872944,696.15,694.96,0.56548855]
[1735547635879,0.2872944,696.15,694.97,0.56548855]
[1735547636080,0.2872944,696.15,694.98,0.56548855]
[1735547636280,0.2872944,696.15,694.99,0.56548855]
[1735547636478,0.26471637,696.14,695.0,0.56548855]
[1735547636674,0.28730678,696.12,695.01,0.56548855]
[1735547636878,0.26471637,696.11,695.02,0.56567948]
[1735547637078,0.28731916,696.09,695.03,0.56567948]
[1735547637279,0.26471637,696.08,695.04,0.56567948]
[1735547637482,0.26471637,696.08,695.05,0.56567948]
[1735547637781,0.26471637,696.08,695.06,0.56567948]
[1735547637982,0.26471637,696.08,695.07,0.56567948]
[1735547638178,0.28733155,696.06,695.08,0.56567948]
[1735547638379,0.26471637,696.05,695.09,0.56567948]
[1735547638577,0.26471637,696.05,694.39,1.07441524]
[1735547638779,0.28734393,696.03,694.4,0.5647391]
[1735547638984,0.28734393,696.03,693.94,1.07441524]
[1735547638985,0.28734393,696.03,694.41,0.5647391]
[1735547639284,0.28734393,696.03,694.42,0.5647391]
[1735547639479,0.28734393,696.03,694.43,0.5647391]
[1735547639686,0.28734393,696.03,694.44,0.5647391]
[1735547639983,0.28734393,696.03,694.45,0.5647391]
[1735547640178,0.28734393,696.03,694.46,0.5647391]
[1735547640386,0.28734393,696.03,694.31,1.07441524]
[1735547640387,0.28734393,696.03,694.47,0.5647391]
[1735547640585,0.28734393,696.03,694.48,0.5647391]
[1735547640786,0.28734393,696.03,694.49,0.5647391]
[1735547640981,0.28734393,696.03,694.5,0.5647391]
[1735547641186,0.28734393,696.03,694.51,0.5647391]
[1735547641380,0.28734393,696.03,694.52,0.5647391]
[1735547641580,0.28734393,696.03,694.53,0.5647391]
[1735547641784,0.28734393,696.03,694.54,0.5647391]
[1735547642084,0.28734393,696.03,694.55,0.5647391]
[1735547642281,0.26461571,696.02,694.56,0.5647391]
[1735547642486,0.26461571,696.02,694.57,0.5647391]
[1735547642786,0.28735632,696.0,694.58,0.5647391]
[1735547642987,0.26461571,695.99,694.59,0.5647391]
[1735547643290,0.2873687,695.97,694.6,0.5647391]
[1735547643581,0.26463023,695.96,694.61,0.5647391]
[1735547643786,0.28738109,695.94,694.62,0.5647391]
[1735547644087,0.26463023,695.93,694.69,1.07441524]
[1735547644389,0.28739348,695.91,694.7,0.5647391]
[1735547644580,0.28739348,695.91,694.69,1.07441524]
[1735547644785,0.28739348,695.91,694.7,0.56396911]
[1735547645086,0.28739348,695.91,694.69,1.07441524]
[1735547645286,0.28739348,695.91,694.7,0.56396951]
[1735547645485,0.28739348,695.91,694.74,1.07441524]
[1735547645684,0.28739348,695.91,694.75,0.56396951]
[1735547645885,0.28739348,695.91,694.76,0.56396951]
[1735547646081,0.28739348,695.91,694.77,0.56396951]
[1735547646284,0.28739348,695.91,694.78,0.56396951]
[1735547646480,0.28739348,695.91,694.79,0.56396951]
[1735547646684,0.28739348,695.91,694.8,0.56396951]
[1735547646880,0.28739348,695.91,694.81,0.56396951]
[1735547647083,0.28739348,695.91,694.82,0.56396951]
[1735547647284,0.28739348,695.91,694.76,1.07441524]
[1735547647285,0.28739348,695.91,694.83,0.56396951]
[1735547647483,0.28739348,695.91,694.84,0.56396951]
[1735547647679,0.28739348,695.91,694.8,1.07441524]
[1735547647680,0.28739348,695.91,694.85,0.56369416]
[1735547647981,0.28739348,695.91,694.86,0.56369416]
[1735547648186,0.28739348,695.91,694.87,0.56369416]
[1735547648389,0.28739348,695.91,694.88,0.56369416]
[1735547648586,0.28739348,695.91,694.89,0.56369416]
[1735547648781,0.28739348,695.91,694.9,0.56369416]
[1735547648981,0.28739348,695.91,694.91,0.56369416]
[1735547649185,0.28739348,695.91,694.92,0.56369416]
[1735547649382,0.28739348,695.91,694.93,0.56369416]
[1735547649587,0.28739348,695.91,694.94,0.56369416]
[1735547649787,0.28739348,695.91,694.95,0.56369416]
[1735547649988,0.28739348,695.91,694.96,0.56369416]
[1735547650183,0.28739348,695.91,694.97,0.56369416]
[1735547650383,0.28739348,695.91,694.98,0.56369416]
[1735547650589,0.28739348,695.91,694.99,0.56369416]
[1735547650789,0.28739348,695.91,695.0,0.56372418]
[1735547650988,0.28739348,695.91,695.01,0.56372418]
[1735547651191,0.28739348,695.91,695.02,0.56372418]
[1735547651391,0.28739348,695.91,695.03,0.56372418]
[1735547651592,0.28739348,695.91,695.04,0.56372418]
[1735547651789,0.28739348,695.91,695.05,0.56372418]
[1735547651995,0.28739348,695.91,695.06,0.56372418]
[1735547652188,0.28739348,695.91,695.07,0.56372418]
[1735547652392,0.28739348,695.91,695.08,0.56372418]
[1735547652596,0.28739348,695.91,695.09,0.56372418]
[1735547652794,0.28739348,695.91,695.1,0.56372418]
[1735547652990,0.28739348,695.91,695.11,0.56372418]
[1735547653190,0.28739348,695.91,695.12,0.56372418]
[1735547653390,0.28739348,695.91,695.13,0.56372418]
[1735547653592,0.28739348,695.91,695.14,0.56372418]
[1735547653795,0.28739348,695.91,695.15,0.56370249]
[1735547653991,0.28739348,695.91,695.16,0.56370249]
[1735547654192,0.28739348,695.91,695.17,0.56370249]
[1735547654393,0.28739348,695.91,695.18,0.5636994]
[1735547654697,0.28739348,695.91,695.19,0.5636994]
[1735547654893,0.28739348,695.91,695.2,0.5636994]
[1735547655096,0.28739348,695.91,695.21,0.5636994]
[1735547655292,0.28739348,695.91,695.22,0.5636994]
[1735547655497,0.28739348,695.91,695.23,0.5636994]
[1735547655693,0.28739348,695.91,695.24,0.5636994]
[1735547655899,0.28739348,695.91,695.25,0.5636994]
[1735547656198,0.28739348,695.91,695.26,0.56365897]
[1735547656397,0.28739348,695.91,695.27,0.56365897]
[1735547656598,0.28739348,695.91,695.28,0.56365897]
[1735547656900,0.28739348,695.91,695.29,0.56365648]
[1735547657201,0.28739348,695.91,695.3,0.56365648]
[1735547657397,0.28739348,695.91,695.31,0.56365648]
[1735547657593,0.28739348,695.91,695.32,0.56365648]
[1735547657800,0.28739348,695.91,695.33,0.56365648]
[1735547658000,0.28739348,695.91,695.34,0.56365648]
[1735547658195,0.28739348,695.91,695.35,0.56365648]
[1735547658399,0.28739348,695.91,695.36,0.56365648]
[1735547658699,0.28739348,695.91,695.37,0.56365648]
[1735547658900,0.28739348,695.91,695.38,0.56365648]
[1735547659100,0.28739348,695.91,695.39,0.56365648]
[1735547659400,0.28739348,695.91,695.4,0.56365648]
[1735547659593,0.28739348,695.91,695.41,0.56365648]
[1735547659798,0.28739348,695.91,695.42,0.56365648]
[1735547660000,0.28739348,695.91,694.72,1.07441524]
[1735547660001,0.28739348,695.91,695.43,0.56367009]
[1735547660201,0.28739348,695.91,695.44,0.56367009]
[1735547660400,0.28739348,695.91,695.45,0.56367009]
[1735547660601,0.28739348,695.91,695.46,0.56367009]
[1735547660799,0.28739348,695.91,695.47,0.56367009]
[1735547660999,0.28739348,695.91,695.48,0.56367009]
[1735547661201,0.28739348,695.91,695.49,0.56367009]
[1735547661496,0.28739348,695.91,695.5,0.56367009]
[1735547661696,0.28739348,695.91,695.51,0.56367009]
[1735547661903,0.28739348,695.91,695.52,0.56367009]
[1735547662101,0.28739348,695.91,695.53,0.56367009]
[1735547662306,0.28739348,695.91,695.54,0.56367009]
[1735547662601,0.28739348,695.91,695.55,0.56367009]
[1735547662804,0.28739348,695.91,695.56,0.56367009]
[1735547663004,0.28739348,695.91,695.57,0.56368914]
[1735547663205,0.28739348,695.91,695.58,0.56368914]
[1735547663397,0.28739348,695.91,695.59,0.56368914]
[1735547663599,0.28739348,695.91,695.6,0.56377803]
[1735547663799,0.28739348,695.91,695.61,0.56377803]
[1735547664102,0.28739348,695.91,695.62,0.56377803]
[1735547664403,0.28739348,695.91,695.63,0.56377803]
[1735547664603,0.28739348,695.91,695.64,0.56377803]
[1735547664803,0.28739348,695.91,694.86,1.07441524]
[1735547664804,0.28739348,695.91,695.65,0.56377803]
[1735547665003,0.28739348,695.91,695.66,0.56377803]
[1735547665201,0.28739348,695.91,695.67,0.56377803]
[1735547665405,0.28739348,695.91,694.86,1.07441524]
[1735547665607,0.28739348,695.91,694.87,0.56403266]
[1735547665806,0.28739348,695.91,694.88,0.56403266]
[1735547666008,0.28739348,695.91,694.89,0.56403266]
[1735547666209,0.28739348,695.91,694.9,0.56403266]
[1735547666407,0.28739348,695.91,694.88,1.07441524]
[1735547666408,0.28739348,695.91,694.91,0.56403266]
[1735547666607,0.28739348,695.91,694.92,0.56403266]
[1735547666808,0.28739348,695.91,694.93,0.56403266]
[1735547667006,0.28739348,695.91,694.94,0.56403266]
[1735547667204,0.28739348,695.91,694.88,1.07441524]
[1735547667205,0.28739348,695.91,694.95,0.56403266]
[1735547667510,0.28739348,695.91,694.96,0.56403266]
[1735547667710,0.28739348,695.91,694.97,0.56403266]
[1735547667911,0.28739348,695.91,694.98,0.56403266]
[1735547668105,0.28739348,695.91,694.99,0.56403266]
[1735547668309,0.28739348,695.91,695.0,0.56403266]
[1735547668614,0.28739348,695.91,695.01,0.56403266]
[1735547668812,0.28739348,695.91,695.02,0.56403266]
[1735547669015,0.28739348,695.91,695.03,0.56403266]
[1735547669209,0.28739348,695.91,694.86,1.07441524]
[1735547669514,0.28739348,695.91,694.87,0.56444468]
[1735547669714,0.28739348,695.91,694.88,0.56444468]
[1735547669914,0.28739348,695.91,694.89,0.56444468]
[1735547670215,0.28739348,695.91,694.9,0.56444468]
[1735547670409,0.28739348,695.91,694.86,1.07441524]
[1735547670410,0.28739348,695.91,694.91,0.56444468]
[1735547670609,0.28739348,695.91,694.86,1.07441524]
[1735547670610,0.28739348,695.91,694.92,0.56444468]
[1735547670816,0.28739348,695.91,694.93,0.56444468]
[1735547671018,0.28739348,695.91,694.94,0.56444468]
[1735547671209,0.28739348,695.91,694.95,0.56444468]
[1735547671410,0.28739348,695.91,694.96,0.56444468]
[1735547671616,0.28739348,695.91,694.97,0.56444468]
[1735547671818,0.28739348,695.91,694.98,0.56444468]
[1735547672018,0.28739348,695.91,694.99,0.56444468]
[1735547672317,0.28739348,695.91,694.94,1.07441524]
[1735547672515,0.28739348,695.91,694.95,0.56448601]
[1735547672711,0.28739348,695.91,694.96,0.56448601]
[1735547672912,0.28739348,695.91,694.71,6.26449452]
[1735547672913,0.28739348,695.91,695.12,1.07441524]
[1735547673118,0.28739348,695.91,695.13,0.56448601]
[1735547673317,0.28739348,695.91,695.14,0.56448601]
[1735547673514,0.28739348,695.91,695.15,0.56448601]
[1735547673715,0.28739348,695.91,695.16,0.56448601]
[1735547673919,0.28739348,695.91,695.2,1.07441524]
[1735547674120,0.28739348,695.91,695.21,0.56448601]
[1735547674422,0.28739348,695.91,695.22,0.56448601]
[1735547674622,0.28739348,695.91,695.23,0.56448601]
[1735547674822,0.28739348,695.91,695.24,0.56448601]
[1735547675121,0.28739348,695.91,695.28,1.07441524]
[1735547675319,0.28739348,695.91,695.29,0.56402478]
[1735547675515,0.28739348,695.91,695.3,0.56402478]
[1735547675720,0.28739348,695.91,695.31,0.56402478]
[1735547675922,0.28739348,695.91,695.32,0.56402478]
[1735547676121,0.28739348,695.91,695.33,0.56402478]
[1735547676321,0.28739348,695.91,695.34,0.56402478]
[1735547676522,0.28739348,695.91,695.35,0.56402478]
[1735547676824,0.28739348,695.91,695.36,0.56402478]
[1735547677123,0.28739348,695.91,695.37,0.56402478]
[1735547677323,0.28739348,695.91,695.38,0.56402478]
[1735547677523,0.28739348,695.91,695.39,0.56402478]
[1735547677825,0.28739348,695.91,695.4,0.56402478]
[1735547678018,0.28739348,695.91,695.41,0.56402478]
[1735547678223,0.28739348,695.91,695.42,0.56402478]
[1735547678418,0.28739348,695.91,695.43,0.56367603]
[1735547678722,0.28739348,695.91,695.44,0.56367603]
[1735547678915,0.28739348,695.91,695.45,0.56367603]
[1735547679120,0.28739348,695.91,695.46,0.56367603]
[1735547679418,0.28739348,695.91,695.47,0.56367603]
[1735547679620,0.28739348,695.91,695.48,0.56367603]
[1735547679822,0.28739348,695.91,695.49,0.56367603]
[1735547680019,0.28739348,695.91,695.5,0.56367603]
[1735547680220,0.28739348,695.91,695.51,0.56367603]
[1735547680417,0.28739348,695.91,695.52,0.56367603]
[1735547680617,0.28739348,695.91,695.53,0.56367603]
[1735547680818,0.28739348,695.91,695.54,0.56367603]
[1735547681020,0.28739348,695.91,695.55,0.56367603]
[1735547681222,0.28739348,695.91,695.56,0.56367603]
[1735547681519,0.28739348,695.91,695.57,0.56332575]
[1735547681719,0.28739348,695.91,695.58,0.56332575]
[1735547681916,0.28739348,695.91,695.23,1.07441524]
[1735547682120,0.28739348,695.91,695.24,0.563354]
[1735547682321,0.28739348,695.91,695.25,0.563354]
[1735547682523,0.28739348,695.91,695.26,0.563354]
[1735547682719,0.28739348,695.91,695.27,0.563354]
[1735547683018,0.28739348,695.91,695.28,0.563354]
[1735547683319,0.28739348,695.91,695.29,0.563354]
[1735547683523,0.28739348,695.91,695.3,0.563354]
[1735547683824,0.28739348,695.91,695.07,1.07441524]
[1735547684021,0.28739348,695.91,695.08,0.56344284]
[1735547684220,0.28739348,695.91,695.09,0.56344284]
[1735547684427,0.28739348,695.91,695.07,1.07441524]
[1735547684618,0.28739348,695.91,695.08,0.56344874]
[1735547684820,0.28739348,695.91,695.09,0.56344874]
[1735547685023,0.28739348,695.91,695.1,0.56344874]
[1735547685220,0.28739348,695.91,695.11,0.56344874]
[1735547685423,0.28739348,695.91,695.12,0.56344874]
[1735547685624,0.28739348,695.91,695.13,0.56344874]
[1735547685926,0.28739348,695.91,695.14,0.56344874]
[1735547686123,0.28739348,695.91,695.15,0.56344874]
[1735547686428,0.28739348,695.91,695.16,0.56344874]
[1735547686625,0.28739348,695.91,695.17,0.56344874]
[1735547686825,0.28739348,695.91,695.18,0.56344874]
[1735547687026,0.28739348,695.91,695.19,0.56344874]
[1735547687225,0.28739348,695.91,695.2,0.56344874]
[1735547687425,0.28739348,695.91,695.21,0.56344874]
[1735547687621,0.28739348,695.91,695.22,0.56332528]
[1735547687927,0.28739348,695.91,694.54,1.28929829]
[1735547687928,0.28739348,695.91,695.23,0.56332528]
[1735547688128,0.28739348,695.91,695.24,0.56332528]
[1735547688326,0.28739348,695.91,695.25,0.56332528]
[1735547688522,0.28739348,695.91,695.26,0.56332528]
[1735547688729,0.28739348,695.91,695.27,0.56332528]
[1735547689029,0.28739348,695.91,695.28,0.56332528]
[1735547689228,0.28739348,695.91,695.06,1.07441524]
[1735547689229,0.28739348,695.91,695.29,0.56332528]
[1735547689422,0.28739348,695.91,695.3,0.56332528]
[1735547689624,0.28739348,695.91,695.31,0.56332528]
[1735547689825,0.28739348,695.91,695.32,0.56332528]
[1735547690023,0.28739348,695.91,695.33,0.56332528]
[1735547690223,0.28739348,695.91,695.34,0.56332528]
[1735547690429,0.28739348,695.91,695.35,0.56332528]
[1735547690627,0.28739348,695.91,695.36,0.5633561]
[1735547690831,0.28739348,695.91,695.37,0.5633561]
[1735547691025,0.28739348,695.91,695.38,0.5633561]
[1735547691226,0.28739348,695.91,695.39,0.5633561]
[1735547691422,0.28739348,695.91,694.66,1.07441524]
[1735547691423,0.28739348,695.91,695.4,0.5633561]
[1735547691628,0.28739348,695.91,695.41,0.5633561]
[1735547691828,0.28739348,695.91,695.42,0.5633561]
[1735547692027,0.28739348,695.91,695.43,0.5633561]
[1735547692224,0.28739348,695.91,695.05,1.07441524]
[1735547692225,0.28739348,695.91,695.44,0.5633561]
[1735547692426,0.28739348,695.91,695.45,0.5633561]
[1735547692724,0.28739348,695.91,695.46,0.5633561]
[1735547692924,0.28739348,695.91,695.47,0.5633561]
[1735547693128,0.28739348,695.91,695.48,0.5633561]
[1735547693330,0.28739348,695.91,695.49,0.5633561]
[1735547693525,0.28739348,695.91,695.5,0.5633561]
[1735547693727,0.28739348,695.91,695.05,1.07441524]
[1735547693728,0.28739348,695.91,695.51,0.56325743]
[1735547693929,0.28739348,695.91,695.52,0.56325743]
[1735547694130,0.28739348,695.91,695.05,1.07441524]
[1735547694131,0.28739348,695.91,695.53,0.56325743]
[1735547694327,0.28739348,695.91,695.54,0.56325743]
[1735547694629,0.28739348,695.91,695.55,0.56325743]
[1735547694829,0.28739348,695.91,695.56,0.56325743]
[1735547695130,0.28739348,695.91,695.57,0.56325743]
[1735547695333,0.28739348,695.91,695.05,1.07441524]
[1735547695334,0.28739348,695.91,695.58,0.56325743]
[1735547695532,0.28739348,695.91,695.59,0.56325743]
[1735547695726,0.28739348,695.91,695.6,0.56325743]
[1735547695925,0.28739348,695.91,695.61,0.56325743]
[1735547696231,0.28739348,695.91,695.62,0.56325743]
[1735547696430,0.28739348,695.91,695.63,0.56325743]
[1735547696633,0.28739348,695.91,695.64,0.56325743]
[1735547696932,0.28739348,695.91,695.65,0.56323195]
[1735547697132,0.28739348,695.91,695.66,0.56323195]
[1735547697434,0.28739348,695.91,695.67,0.56348453]
[1735547697629,0.28739348,695.91,695.68,0.56348453]
[1735547697828,0.28739348,695.91,695.69,0.56348453]
[1735547698025,0.28739348,695.91,695.7,0.56348453]
[1735547698229,0.28739348,695.91,695.71,0.56348453]
[1735547698531,0.28739348,695.91,695.72,0.56348453]
[1735547698732,0.28739348,695.91,695.73,0.56348453]
[1735547699033,0.28739348,695.91,695.74,0.56348453]
[1735547699227,0.28739348,695.91,695.75,0.56348453]
[1735547699532,0.28739348,695.91,695.76,0.56348453]
[1735547699726,0.28739348,695.91,695.77,0.56348453]
[1735547699929,0.28739348,695.91,695.78,0.56348453]
[1735547700129,0.28739348,695.91,695.79,0.56348453]
[1735547700331,0.28739348,695.91,695.8,0.56348453]
[1735547700533,0.28739348,695.91,695.81,0.56397482]
[1735547700733,0.28739348,695.91,695.82,0.56397482]
[1735547701034,0.28739348,695.91,695.83,0.56397482]
[1735547701234,0.28739348,695.91,695.84,0.56397482]
[1735547701430,0.28739348,695.91,695.85,0.56397482]
[1735547701730,0.28739348,695.91,695.86,0.56397482]
[1735547701932,0.28739348,695.91,695.21,1.07441524]
[1735547702132,0.28739348,695.91,695.22,0.5641255]
[1735547702332,0.28739348,695.91,695.23,0.5641255]
[1735547702535,0.28739348,695.91,695.24,0.5641255]
[1735547702836,0.28739348,695.91,695.25,0.5641255]
[1735547703130,0.28739348,695.91,695.26,0.5641255]
[1735547703335,0.28739348,695.91,695.27,0.5641255]
[1735547703537,0.28739348,695.91,695.28,0.5641255]
[1735547703730,0.28739348,695.91,695.29,0.5641255]
[1735547704036,0.28739348,695.91,694.59,1.28929829]
[1735547704037,0.28739348,695.91,695.3,0.5641255]
[1735547704336,0.28739348,695.91,695.31,0.5641255]
[1735547704538,0.28739348,695.91,695.32,0.5641255]
[1735547704737,0.28739348,695.91,695.33,0.5641255]
[1735547705037,0.28739348,695.91,695.34,0.56448417]
[1735547705237,0.28739348,695.91,695.35,0.56448417]
[1735547705440,0.28739348,695.91,695.36,0.56448417]
[1735547705637,0.28739348,695.91,695.37,0.56448417]
[1735547705836,0.28739348,695.91,695.38,0.56448417]
[1735547706136,0.28739348,695.91,695.39,0.56448417]
[1735547706338,0.28739348,695.91,695.4,0.56448417]
[1735547706539,0.28739348,695.91,695.49,1.07441524]
[1735547706838,0.28739348,695.91,695.5,0.56448417]
[1735547707031,0.28739348,695.91,695.49,1.07441524]
[1735547707032,0.28739348,695.91,695.51,0.56448417]
[1735547707237,0.28739348,695.91,695.52,0.56448417]
[1735547707432,0.28739348,695.91,695.53,0.56448417]
[1735547707634,0.28739348,695.91,695.54,0.56448417]
[1735547707835,0.28739348,695.91,695.55,0.56448417]
[1735547708137,0.28739348,695.91,695.56,0.56448417]
[1735547708437,0.28739348,695.91,695.57,0.56448417]
[1735547708638,0.28739348,695.91,695.58,0.56448417]
[1735547708839,0.28739348,695.91,695.59,0.56448417]
[1735547709140,0.28739348,695.91,695.6,0.56448417]
[1735547709333,0.28739348,695.91,695.61,0.56448417]
[1735547709538,0.28739348,695.91,695.62,0.56448417]
[1735547709738,0.28739348,695.91,695.63,0.56448417]
[1735547709939,0.28739348,695.91,695.64,0.56448417]
[1735547710135,0.28739348,695.91,695.44,1.07441524]
[1735547710136,0.28739348,695.91,695.65,0.56448417]
[1735547710335,0.28739348,695.91,695.66,0.56448417]
[1735547710535,0.28739348,695.91,695.67,0.56448417]
[1735547710734,0.28739348,695.91,695.68,0.56448417]
[1735547710936,0.28739348,695.91,694.96,1.28929829]
[1735547710937,0.28739348,695.91,695.69,0.56448417]
[1735547711133,0.28739348,695.91,695.7,0.56448417]
[1735547711333,0.28739348,695.91,695.71,0.56448417]
[1735547711537,0.28739348,695.91,695.72,0.56448417]
[1735547711741,0.28739348,695.91,695.73,0.56448417]
[1735547711935,0.28739348,695.91,695.74,0.56448417]
[1735547712141,0.28739348,695.91,695.75,0.56448417]
[1735547712341,0.28739348,695.91,695.76,0.56448417]
[1735547712644,0.28739348,695.91,695.77,0.56448417]
[1735547712842,0.28739348,695.91,695.78,0.56448417]
[1735547713044,0.28739348,695.91,694.96,1.28929829]
[1735547713045,0.28739348,695.91,695.79,0.56448417]
[1735547713244,0.28739348,695.91,695.8,0.56448417]
[1735547713444,0.28739348,695.91,695.4,1.07441524]